Cogmind - Beta 13 X2 @@@ ROGUE MODE // 2024.01.24 @ 10:27:53 Player: Boris Result: Destroyed by S-43 Plague with Heavy Machine Gun Performance ------------- Evolutions (6) 3000 Regions Visited (29) 5800 Robots Destroyed (555) 2775 Value Destroyed (23517) 23517 Prototype IDs (77) 1540 Alien Tech Used (0) 0 Bonus (11659) 11659 TOTAL SCORE: 48291 Bonus ------- High Alert Combat Kills 3622 Follower Combat Kills 1703 Awakened Behemoth Slayer 1000 Network Hubs Disabled 800 Met Data Miner 300 Destroyed Z-Imprinter 1000 Triggered Deep Caves Wall 500 Exposed GOLEM Chamber 500 Met Warlord at Base 500 MAIN.C Attacked Warlord 500 Warlord Defense Kills 3744 Met R17 at Cetus 500 Friendly Fire -3010 Cogmind --------- Core Integrity 0/1150 Matter 290/300 Energy 1023/1170 System Corruption 4% Temperature Cool (6) Movement Core (350) Ox6 Location -3/Proximity Caves Parts ------- > --- POWER (2) -------- Light Antimatter Reactor > --- PROPULSION (4) --- (None) > --- UTILITY (9) ------ Assembled Biocell Array Experimental Terrain Scan Processor Experimental Targeting Computer Experimental Core Analyzer Improved Hacking Suite > --- WEAPON (4) ------- Phase Gun > --- INVENTORY (5) ---- CR-A16's Behemoth Slayer Peak State ------------ > --- POWER ------------ Vortex Chain Reactor > --- PROPULSION ------- Assembled Alloy Leg Assembled Alloy Leg Centrium Leg Centrium Leg > --- UTILITY ---------- Advanced Cooling System High-capacity Storage Unit Assembled Biocell Array Experimental Terrain Scan Processor Experimental Targeting Computer Experimental Core Analyzer Advanced Remote Shield Point Defense Array Improved Hacking Suite > --- WEAPON ----------- Assembled Focal Cannon Helical Railgun Vortex Catalyst Activator > --- INVENTORY -------- Enhanced Biometal Leg Enhanced Biometal Leg Experimental Myomer Leg Experimental Myomer Leg Advanced Signal Interpreter Experimental Phase Shifter Advanced Cloaking Device Medium Regenerative Plating Experimental EM Disruption Field BFG-9k Vortex Edition Railgun Heavy Autocannon CR-A16's Behemoth Slayer [Rating: 170] Favorites ----------- Power Assembled Flux Generator Engine Reinforced Deuterium Engine Power Core Neutrino Core Reactor Assembled Flux Generator Propulsion Assembled Alloy Leg Treads Light Treads Leg Assembled Alloy Leg Wheel Armored Huge Wheel Hover Unit Antigrav System Flight Unit Improved Flight Unit Utility High-capacity Storage Unit Device GOLEM Unit Storage High-capacity Storage Unit Processor Enhanced Optical Array Hackware Improved Hacking Suite Protection Medium Regenerative Plating Weapon Enhanced Autogun Energy Gun Advanced Beam Rifle Energy Cannon Assembled Focal Cannon Ballistic Gun Enhanced Autogun Ballistic Cannon Improved Light Cannon Launcher Precision Rocket Launcher Impact Weapon Gravity Flail Slashing Weapon Phasing Sabre Piercing Weapon CR-A16's Behemoth Slayer Special Melee Weapon Dirty Datajack Build | -11 -10 -10 -9 -9 -8 -8 -7 -7 -7 -7 -6 -6 -6 -6 -6 -6 -5 -5 -5 -5 -5 -5 -4 -4 -4 -4 -4 -4 -3 ------- Run | Yrd Mat Min Mat Min Mat Sto Fac Low Low Dat Pro Fac Low Low Zio Dee Pro Fac Ext Cet Arc Hub Fac Was Fac Upp Upp War Pro Slots Evolved 12 | . . . 2 . 2 . 2 . . . . 2 . . . . . 2 . . . . 2 . . . . . . Power 1 | . . . . . . . . . . . . 1 . . . . . . . . . . . . . . . . . Propulsion 2 | . . . 1 . 1 . . . . . . . . . . . . . . . . . . . . . . . . Utility 7 | . . . . . 1 . 1 . . . . 1 . . . . . 2 . . . . 2 . . . . . . Weapon 2 | . . . 1 . . . 1 . . . . . . . . . . . . . . . . . . . . . . Parts Attached 520 | 7 14 6 29 7 47 32 42 2 4 4 2 7 4 3 17 66 16 4 7 16 17 55 27 10 24 4 9 31 7 Power 32 | 1 2 . 2 . 3 2 1 . 1 . . 1 . 1 . 7 2 . . 2 1 1 1 . 2 . . 1 1 Engine 13 | 1 2 . 2 . 3 2 . . . . . 1 . . . 1 1 . . . . . . . . . . . . Core 5 | . . . . . . . 1 . 1 . . . . 1 . . . . . . . . 1 . 1 . . . . Reactor 14 | . . . . . . . . . . . . . . . . 6 1 . . 2 1 1 . . 1 . . 1 1 Propulsion 80 | 2 2 . 8 . 10 10 10 . . . . . . . 4 8 2 . 5 2 . 3 2 3 6 . . 2 1 Treads 49 | 2 2 . 8 . 9 9 6 . . . . . . . 3 3 . . 2 2 . 2 . 1 . . . . . Leg 23 | . . . . . . . 2 . . . . . . . . 3 2 . 3 . . 1 2 2 6 . . 2 . Wheel 2 | . . . . . . . 1 . . . . . . . 1 . . . . . . . . . . . . . . Hover 4 | . . . . . . . 1 . . . . . . . . 2 . . . . . . . . . . . . 1 Flight 2 | . . . . . 1 1 . . . . . . . . . . . . . . . . . . . . . . . Utility 214 | 2 5 . 7 3 10 3 17 . . . . 3 . . 7 30 4 4 2 10 14 41 17 6 7 1 4 16 1 Device 127 | 1 3 . 3 1 9 2 11 . . . . . . . 5 19 4 3 . 2 8 21 12 2 5 1 3 11 1 Storage 11 | 1 1 . 1 . . . . . . . . 1 . . . 2 . . . . . 1 1 1 1 . . 1 . Processor 12 | . 1 . . . . . 2 . . . . . . . 1 . . 1 1 1 . 1 . 1 . . . 3 . Hackware 8 | . . . . . . . 1 . . . . 1 . . . . . . 1 . 1 2 2 . . . . . . Protection 56 | . . . 3 2 1 1 3 . . . . 1 . . 1 9 . . . 7 5 16 2 2 1 . 1 1 . Artifact . | . . . . . . . . . . . . . . . . . . . . . . . . . . . . . . Weapon 194 | 2 5 6 12 4 24 17 14 2 3 4 2 3 4 2 6 21 8 . . 2 2 10 7 1 9 3 5 12 4 Energy Gun 34 | 2 . . . . 12 8 2 . . . . . . . . 4 . . . . . . . . 4 . . 1 1 Energy Cannon 16 | . . . 3 . 2 . 2 . . . 1 2 . 1 . 3 1 . . . . . . . 1 . . . . Ballistic Gun 78 | . . . 3 2 6 5 7 1 2 4 1 1 2 . 3 9 3 . . 2 2 8 5 1 1 2 3 5 . Ballistic Cannon 12 | . 4 3 3 . . . . . . . . . . . . . . . . . . . . . . . . 2 . Launcher 27 | . 1 3 3 2 2 2 1 1 1 . . . 2 1 . 2 1 . . . . 1 1 . . . . 3 . Special Weapon . | . . . . . . . . . . . . . . . . . . . . . . . . . . . . . . Impact Weapon 12 | . . . . . 2 1 1 . . . . . . . 3 2 3 . . . . . . . . . . . . Slashing Weapon 4 | . . . . . . 1 1 . . . . . . . . . . . . . . . . . . 1 1 . . Piercing Weapon 9 | . . . . . . . . . . . . . . . . 1 . . . . . . 1 . 3 . 1 . 3 Special Melee Weapon 2 | . . . . . . . . . . . . . . . . . . . . . . 1 . . . . . 1 . Unidentified Prototypes 58 | . . . 1 . 3 4 10 . . . . 1 . . 1 18 . 1 . 4 . 6 . . . . . 9 . Corrupted Parts 8 | . . . . . . . . . . . . . . . . . 3 . . 1 1 1 . . . . . 2 . System Corruption 64 | . . . . . . . . . . . . . . . . . 37 . . 12 8 3 . . . . . 4 . Parts Lost 77 | . 1 . 3 . 6 . 4 . 1 . . . 1 . . 10 9 1 . 1 . 6 3 2 13 1 2 9 4 Power 12 | . 1 . 1 . 1 . . . 1 . . . 1 . . 1 2 . . . . . 1 . 3 . . . . Propulsion 19 | . . . . . 3 . 3 . . . . . . . . 1 1 1 . . . . 1 . 4 . . 2 3 Utility 25 | . . . 1 . . . 1 . . . . . . . . 8 1 . . 1 . 1 1 2 . . 2 6 1 Weapon 21 | . . . 1 . 2 . . . . . . . . . . . 5 . . . . 5 . . 6 1 . 1 . Highest Loss Streak 8 | . 1 . 2 . 3 . 1 . 1 . . . 1 . . 3 8 1 . 1 . 3 2 2 5 1 1 3 4 To Critical Strikes . | . . . . . . . . . . . . . . . . . . . . . . . . . . . . . . Average Slot Usage (%) 86 | . 94 100 99 100 99 99 93 76 75 57 76 79 73 79 84 81 84 85 87 87 86 87 87 78 88 76 87 89 36 Engine 3 | . 14 14 10 11 9 9 4 . . . . 5 6 6 6 3 . . . . . . . . . . . . . Core 1 | . . . . . . . 2 7 6 7 7 6 . 5 6 2 . . . . . . . . 1 . . . . Reactor 3 | . . . . . . . . . . . . . . . . 3 8 5 5 10 11 11 9 4 5 5 5 4 . Treads 12 | . 28 28 32 33 35 36 24 15 15 15 15 13 13 13 13 5 . . 4 9 11 11 5 2 . . . . . Leg 8 | . . . . . . . 1 . . . . . . . . 14 25 20 17 3 . . 8 15 20 21 21 20 9 Wheel 1 | . . . . . . . . 7 7 7 7 6 6 6 6 2 . . . . . . . . . . . . . Device 9 | . 8 14 8 5 9 12 6 7 7 7 7 6 6 6 8 12 11 11 8 3 6 6 7 7 8 10 15 17 . Storage 9 | . 14 14 11 11 9 9 7 7 7 7 7 6 6 6 6 5 13 11 11 11 11 11 10 6 10 10 10 9 5 Processor 3 | . . . . . . . 3 . . . . . . . 2 3 . 4 6 13 11 11 10 10 10 5 5 7 15 Hackware 1 | . . . . . . . 3 . . . . 5 . . . . . . 1 . . . 7 10 10 5 5 5 5 Protection 3 | . . . 2 5 9 4 4 . . . . . 6 6 5 5 . 4 5 8 7 8 5 2 1 . 4 2 . Energy Gun 1 | . 2 . . . 9 18 . . . . . . . . . . . . . . . . . 3 1 2 . . . Energy Cannon 7 | . . . 11 . 2 . . . . . 4 3 . 3 . 6 15 22 22 16 11 8 . 7 14 14 6 4 . Ballistic Gun 11 | . . . 9 27 13 8 29 29 29 11 25 23 25 20 22 10 3 . . 5 11 12 19 4 1 1 11 8 . Ballistic Cannon 2 | . 25 25 12 . . . . . . . . . . . . . . . . . . . . . . . . . . Naked Turns . | . . . . . . . . . . . . . . . . . . . . . . . . . . . . . . Heaviest Build 147 | 14 54 54 63 62 66 64 74 69 66 61 71 106 101 115 110 131 141 147 146 145 145 146 126 106 140 137 140 137 7 Greatest Support 160 | 40 40 40 62 62 84 84 98 28 40 28 28 28 28 28 47 112 112 104 85 160 160 160 160 115 120 120 120 120 3 Greatest Overweight (x) 4 | . 2 1 1 . . . 2 2 2 2 2 3 3 4 3 3 1 1 1 1 . 1 3 1 1 1 1 1 2 Average Overweight (x) 1 | . . 1 . . . . . 2 1 1 2 2 3 3 2 1 . 1 1 . . . . . . . . . . Largest Inventory Capacity 20 | 8 20 20 20 20 20 20 20 20 20 20 20 20 20 20 20 20 20 20 20 20 20 20 20 20 20 20 20 20 5 Average Capacity 18 | 7 19 20 20 20 20 20 20 20 20 20 20 20 20 20 20 12 20 20 20 20 20 20 20 6 17 20 20 19 5 Most Carried 20 | 3 20 20 20 20 20 20 20 20 20 20 20 20 20 20 20 20 20 20 20 20 20 20 20 19 20 20 20 20 4 Average Carried 17 | 1 14 20 19 19 19 19 19 19 19 20 20 19 20 19 19 12 19 19 19 19 19 19 19 6 13 17 17 19 2 Final Capacity 20 | 8 20 20 20 20 20 20 20 20 20 20 20 20 20 20 20 20 20 20 20 20 20 20 20 5 20 20 20 5 5 Final Carried 20 | 3 20 20 20 19 20 20 20 20 20 20 20 20 20 20 20 20 20 20 20 20 20 19 19 5 20 20 20 2 1 Class Distribution -------------------- 18% | Golem 16% | Scavenger-Skirmisher 12% | Scavenger-Gunner 11% | Scavenger-Tank 7% | Mutant 7% | Scavenger-Mutant 6% | Tank 5% | Gunner 4% | Scavenger-Golem Dominant Class ---------------- Mutant | -10/Materials Mutant | -10/Mines Gunner | -9/Materials Tank | -9/Mines Scavenger-Tank | -8/Materials Scavenger-Gunner | -8/Storage Scavenger-Tank | -7/Factory Skirmisher | -7/Lower Caves Scavenger-Skirmisher | -7/Lower Caves Scavenger-Mutant | -7/Data Miner Scavenger-Skirmisher | -6/Proximity Caves Scavenger-Skirmisher | -6/Factory Scavenger-Skirmisher | -6/Lower Caves Scavenger-Skirmisher | -6/Lower Caves Scavenger-Assassin | -6/Zion Scavenger-Tank | -6/Deep Caves Golem | -5/Proximity Caves Golem | -5/Factory Golem | -5/Extension Scavenger-Gunner | -5/Cetus Scavenger-Gunner | -5/Archives Scavenger-Gunner | -5/Hub_04(d) Scavenger-Gunner | -4/Factory Scavenger-Golem | -4/Waste Scavenger-Golem | -4/Factory Golem | -4/Upper Caves Scavenger-Skirmisher | -4/Upper Caves Scavenger-Mutant | -4/Warlord Mutant | -3/Proximity Caves Resources | -11 -10 -10 -9 -9 -8 -8 -7 -7 -7 -7 -6 -6 -6 -6 -6 -6 -5 -5 -5 -5 -5 -5 -4 -4 -4 -4 -4 -4 -3 ----------- Run | Yrd Mat Min Mat Min Mat Sto Fac Low Low Dat Pro Fac Low Low Zio Dee Pro Fac Ext Cet Arc Hub Fac Was Fac Upp Upp War Pro Matter Collected 13401 | 265 404 214 784 220 816 558 1518 188 205 . 127 127 249 198 170 1885 305 128 123 280 407 1652 911 209 326 166 287 634 45 Remotely 2351 | . . . . . . . 675 . . . . . . . . . . . . 78 . 805 793 . . . . . . Salvage Created 26101 | 108 395 226 1122 299 1404 1882 1815 93 195 . 20 192 308 154 . 1957 730 1008 1705 940 676 4976 1575 56 2547 348 508 741 121 Parts 1234 | 11 26 18 85 26 63 86 117 5 14 . 3 11 8 12 . 64 30 53 58 36 45 216 75 3 93 17 22 32 5 Haulers Intercepted 21 | . 1 . 4 . 2 6 4 . . . . . . . . . . . 1 . . 2 . . 1 . . . . Recyclers Shooed 6 | . . . 1 . . . 1 . . . . 1 . . . . . . . . . 1 2 . . . . . . Parts Field Recycled . | . . . . . . . . . . . . . . . . . . . . . . . . . . . . . . Retrieved Matter . | . . . . . . . . . . . . . . . . . . . . . . . . . . . . . . Parts Self-Destructed 93 | . . . . . . . . 5 12 . 3 . 9 10 . . 25 . . . . . . . . 9 20 . . Prevented 11 | . . . . . . . . 4 . . . . 2 . . . 4 . . . . . . . . . . . 1 Kills | -11 -10 -10 -9 -9 -8 -8 -7 -7 -7 -7 -6 -6 -6 -6 -6 -6 -5 -5 -5 -5 -5 -5 -4 -4 -4 -4 -4 -4 -3 ------- Run | Yrd Mat Min Mat Min Mat Sto Fac Low Low Dat Pro Fac Low Low Zio Dee Pro Fac Ext Cet Arc Hub Fac Was Fac Upp Upp War Pro Combat Hostiles Destroyed 494 | . 14 14 31 15 22 26 30 3 7 . 2 . 6 8 . 72 17 16 22 13 4 64 26 . 35 9 12 24 2 Melee 10 | . . . . . . . . . . . . . . . . 1 . . . . . . . . 8 . . . 1 Guns 182 | . . . 7 7 16 24 25 . 3 . 2 . 3 1 . 9 2 . . 2 1 33 22 . 11 1 2 10 1 Cannons 167 | . 11 4 14 . 4 . . . . . . . . . . 10 12 16 20 11 3 29 . . 14 8 9 2 . AOE 124 | . 3 10 10 8 2 1 5 3 4 . . . 3 7 . 50 1 . . . . 2 3 . . . . 12 . Classes Destroyed 30 | 2 4 . 3 2 1 1 5 1 . . 1 . 1 . . 4 1 . . . . 1 . 1 . . . 2 . Worker 28 | . . . 2 1 2 3 6 . . . . 1 . . . . . . . . . 9 . . 4 . . . . Builder 12 | . . . . . . . 2 . . . . . . . . . . . 1 . . 4 3 . 2 . . . . Tunneler 8 | 3 1 3 . . 1 . . . . . . . . . . . . . . . . . . . . . . . . Hauler 21 | . 1 . 4 . 2 6 4 . . . . . . . . . . . 1 . . 2 . . 1 . . . . Recycler 15 | 1 . . 2 . 1 3 2 . . . . 1 . . . . . 1 1 . . 2 . . 1 . . . . Minesweeper 4 | . . . . . . . . . . . . . 2 1 . . . . . . . . . . . . . . 1 Mechanic 1 | . . . 1 . . . . . . . . . . . . . . . . . . . . . . . . . . Operator 16 | . . . . . 1 1 1 . . . . . . . . . . . 1 . 9 2 1 . . . . . . Drone 4 | . . . . . . . . . . . 2 . . . . . 2 . . . . . . . . . . . . Watcher 17 | . 2 . 1 . 2 2 3 . . . . 2 . . . . . 2 1 1 . 1 . . . . . . . Swarmer 103 | . 6 6 18 8 . 1 5 3 7 . . . . 7 . . 5 4 . . . . 9 . 6 5 9 2 2 Saboteur 2 | . . . . . . . . . . . . . . . . . . . . . . 1 1 . . . . . . Grunt 153 | . 8 8 4 5 15 12 8 . . . . . 6 . . . 6 2 9 7 . 28 11 . 19 . 1 4 . Brawler 9 | . . . . . . 1 . . . . . . . . . . 1 . 1 . . 2 1 . . . . 3 . Duelist 9 | . . . . 1 2 1 . . . . . . . . . . . . . 1 . 1 1 . . . . 2 . Protector 8 | . . . . 1 . 1 2 . . . . . . . . . . . . . . 2 . . . . . 2 . Sentry 55 | . . . 9 . 5 10 1 . . . . . . 1 . . 1 4 9 . 4 8 1 . 1 . 1 . . Specialist 8 | . . . . . . . 4 . . . . . . . . . . . . . . 4 . . . . . . . Hunter 13 | . . . . . . . 5 . . . . . . . . . 1 . 2 . . 2 . . . . . 3 . Programmer 31 | . . . . . . . 3 . . . . . . . . . . 6 . . . 9 2 . 8 . . 3 . Heavy 3 | . . . . . . . 2 . . . . . . . . . . . . . . 1 . . . . . . . Behemoth 4 | . . . . . . . . . . . . . . . . . 1 . . . . . 1 . 1 . 1 . . Cetus Guard 5 | . . . . . . . . . . . . . . . . . . . . 5 . . . . . . . . . Enhanced Demolisher 1 | . . . . . . . . . . . . . . . . . . . . . . . . . . . . 1 . Lightning 6 | . . . . . . . . . . . . . . . . . . . . . . 6 . . . . . . . Striker 2 | . . . . . . . . . . . . . . . . . . . . . . . . . . . . 2 . Executioner 2 | . . . . . . . . . . . . . . . . . . . . . . . . . . . . 2 . Z-Technician 5 | . . . . . . . . . . . . . . . . 5 . . . . . . . . . . . . . Z-Light 6 | . . . . . . . . . . . . . . . . 6 . . . . . . . . . . . . . Samaritan 2 | . . . . . . . . 1 . . . . . . . . . . . . . . . . . . . . 1 Assembler 2 | . . . . . . . . . . . . . . . . 2 . . . . . . . . . . . . . Assembled 45 | . . . . . . . . . . . . . . . . 45 . . . . . . . . . . . . . Golem 20 | . . . . . . . . . . . . . . . . 20 . . . . . . . . . . . . . Wasp 1 | . . . . . . . . . . . . . . . . . . . . . . . . . 1 . . . . Thug 2 | . . . . . . . . . . . . . . . . . . . 1 . . . . . . 1 . . . Butcher 4 | . . . . . . . . . . . . . . . . . . . . 1 . . . . . 3 . . . Martyr 1 | . . . . . . . . . . . . . . . . . . . . . . . . 1 . . . . . Guerrilla 1 | . . . . . . . . . . . . . . . . . . . 1 . . . . . . . . . . Best Kill Streak 60 | 2 5 6 6 5 5 7 18 3 4 . 2 1 4 4 . 60 5 5 4 5 7 15 12 . 8 4 6 10 1 Combat Bots Only 58 | . 5 6 5 5 3 5 13 3 4 . 2 . 4 4 . 58 5 4 3 4 2 7 9 . 6 4 6 10 1 Max Kills in Single Turn 12 | 1 3 3 4 5 1 2 3 3 4 . 1 1 3 3 . 12 1 2 3 2 2 2 3 1 2 1 2 5 1 Gunslinging 1 | . . . 1 1 . 1 . . . . . . . . . . . . . . . . 1 . . . . . . Exploded 12 | . 3 3 4 4 1 1 2 3 4 . . . 2 3 . 12 1 . . . . 1 3 . . . . 5 . Melee 1 | . . . . . . . . . . . . . . . . 1 . . . . . . . . 1 . . . 1 Uniques/NPCs Destroyed 2 | . . . . . . . . . . . . . . . . 1 . . . 1 . . . . . . . . . Z-Imprinter (-6/Deep Caves) Revision 17 (-5/Cetus) Combat | -11 -10 -10 -9 -9 -8 -8 -7 -7 -7 -7 -6 -6 -6 -6 -6 -6 -5 -5 -5 -5 -5 -5 -4 -4 -4 -4 -4 -4 -3 -------- Run | Yrd Mat Min Mat Min Mat Sto Fac Low Low Dat Pro Fac Low Low Zio Dee Pro Fac Ext Cet Arc Hub Fac Was Fac Upp Upp War Pro Hostile Shots Fired 2170 | . 47 23 114 18 132 70 162 . 15 . . . 33 22 . 159 199 64 39 47 13 266 109 2 290 39 96 161 50 Missed 624 | . 7 11 32 7 37 18 59 . 1 . . . 6 7 . 42 57 20 11 12 . 50 35 . 70 12 36 74 20 Damage Taken 29221 | . 403 150 1162 136 1574 864 2023 . 199 . . 88 494 91 . 2668 2667 769 581 851 349 3974 1559 71 4364 439 1096 1970 679 Core 2880 | . 45 25 120 24 161 62 170 . 69 . . . 18 . . 318 367 64 115 26 . 146 93 . 339 61 158 264 235 Absorbed by Shields 637 | . . . . . . . . . . . . . . . . 218 . . 18 34 . . . . . . . 367 . Reduced by Siege Mode 552 | . . . . . . . . . . . . . . . . . . . . 72 31 367 82 . . . . . . Redirected to Shielding 73 | . . . . . . . . . . . . . . . . 73 . . . . . . . . . . . . . Ignored by Resistances 1824 | . . . . . . . . . . . . . 8 28 . 240 . 156 121 96 . 1068 107 . . . . . . Regen/Repaired (Parts) 1817 | . 138 . 48 . . . . . . . . . . . 223 . . . . 1 10 503 224 418 243 . . 9 . Core Remaining (%) 63 | 100 . 72 . 64 . 59 . . . . 65 . . . . . 17 . . . . 64 . . . . . . . Volleys Fired 1149 | 10 34 23 78 13 81 70 74 3 10 . 4 18 13 13 . 127 49 61 45 27 31 139 46 18 73 27 19 40 3 Largest 4 | 2 2 2 3 3 3 3 4 4 4 . 4 4 4 4 . 4 4 4 4 4 4 4 4 4 4 4 4 4 1 Hottest 214 | 90 78 78 167 79 193 183 118 100 100 . 110 110 118 185 . 118 118 185 185 120 120 136 133 133 214 113 128 128 88 Shots Fired 3185 | 20 67 38 199 33 228 206 287 9 38 . 11 30 40 35 . 267 100 135 156 98 85 445 150 45 207 75 71 107 3 Gun 1862 | 20 . . 75 29 198 204 281 8 37 . 9 16 36 27 . 184 39 . . 24 53 258 149 28 69 11 36 68 3 Cannon 1237 | . 66 30 118 . 27 . 2 . . . 2 14 . 4 . 51 58 135 156 74 32 183 . 17 138 64 35 31 . Launcher 86 | . 1 8 6 4 3 2 4 1 1 . . . 4 4 . 32 3 . . . . 4 1 . . . . 8 . Special . | . . . . . . . . . . . . . . . . . . . . . . . . . . . . . . Kinetic 1711 | . 66 30 130 29 112 54 281 8 37 . 9 16 36 27 . 184 39 . . 24 53 258 149 28 29 8 36 68 . Thermal 1383 | 20 . . 63 . 113 150 2 . . . 2 14 . 4 . 51 58 135 156 74 32 183 . 17 173 67 35 31 3 Explosive 78 | . 1 8 6 4 3 2 4 1 1 . . . 4 4 . 32 3 . . . . 4 1 . . . . . . Electromagnetic 5 | . . . . . . . . . . . . . . . . . . . . . . . . . 5 . . . . Entropic 8 | . . . . . . . . . . . . . . . . . . . . . . . . . . . . 8 . Robot Hit Streak 33 | 5 10 8 14 8 14 24 15 4 5 . 3 12 9 14 . 19 10 15 20 20 12 33 23 10 15 9 17 12 9 Robot Miss Streak 8 | 3 6 1 4 2 6 4 4 1 4 . 1 2 5 4 . 5 3 3 4 5 2 2 4 1 4 3 4 8 1 Penetration Max 2 | . . . . . . . . . . . . . . . . . 1 . . 1 1 1 1 1 1 1 . 2 . Secondary Targets 43 | . . . 2 3 4 6 9 . 2 . . . 1 . . 4 1 . . 1 . 2 7 . . . 1 . . Max Gunslinging Chain 2 | . . . 1 2 1 1 1 . 1 . . . 1 . . 1 1 . . 1 . 1 1 . . . 1 . . Shots Hit Robots 1988 | 11 33 17 126 19 159 139 177 6 15 . 2 12 27 21 . 153 65 49 90 64 62 309 100 35 157 33 40 61 6 Core Hits 1144 | 6 20 22 51 23 61 60 101 7 11 . 2 7 16 14 . 230 25 26 37 33 24 155 62 7 67 12 14 47 4 Critical Kills 31 | . . . . . . . 1 . . . . . . . . 1 . . . . 4 18 4 . 2 . . 1 . Critical Parts Destroyed 49 | . . . . . 2 . . . . . . . 2 . . 2 1 . . 2 2 31 4 . 1 . 1 1 . Critical Strikes 124 | . 3 . 1 . 7 17 1 . . . . . 2 . . 4 1 . . 2 8 49 8 1 16 . 1 2 1 Burn 24 | . . . . . 5 17 . . . . . . . . . . . . . . . . . . 2 . . . . Destroy 81 | . . . . . 2 . 1 . . . . . 2 . . 1 1 . . 2 8 49 8 1 3 . 1 2 . Blast 4 | . 3 . 1 . . . . . . . . . . . . . . . . . . . . . . . . . . Smash 3 | . . . . . . . . . . . . . . . . 3 . . . . . . . . . . . . . Impale 12 | . . . . . . . . . . . . . . . . . . . . . . . . . 11 . . . 1 Melee Attacks 118 | . . . . . 14 4 1 . . . . . . . 5 19 10 . . . . . 2 . 42 . 1 16 4 Impact 39 | . . . . . 14 1 . . . . . . . . 5 17 2 . . . . . . . . . . . . Slashing 19 | . . . . . . 3 1 . . . . . . . . . . . . . . . . . . . . 15 . Piercing 60 | . . . . . . . . . . . . . . . . 2 8 . . . . . 2 . 42 . 1 1 4 Sneak Attacks 6 | . . . . . 1 1 1 . . . . . . . . . . . . . . . . . 1 . . . 2 Combat Hostiles 1 | . . . . . . . . . . . . . . . . . . . . . . . . . 1 . . . . Follow-up Attacks . | . . . . . . . . . . . . . . . . . . . . . . . . . . . . . . Damage Inflicted 80751 | 125 820 1259 2906 907 3081 3021 4794 230 542 . 33 283 853 853 . 12159 2523 2435 4708 2911 2257 12060 3336 1345 7069 1419 1381 7129 312 Guns 28094 | 123 . . 791 268 2316 2890 3205 110 304 . 33 156 425 298 . 1758 459 . . 574 1167 6351 3204 670 1481 137 400 895 79 Cannons 29519 | . 695 239 1506 . 332 . . . . . . 127 . 80 . 1339 1490 2435 4655 2337 1090 4830 . 675 4432 1282 981 994 . Explosions 19971 | . 119 1018 594 631 217 55 1472 120 238 . . . 428 475 . 8028 332 . 53 . . 819 132 . . . . 5240 . Melee 3005 | . . . . . 184 66 90 . . . . . . . . 1034 242 . . . . . . . 1156 . . . 233 Ramming 162 | 2 6 2 15 8 32 10 27 . . . . . . . . . . . . . . 60 . . . . . . . Kinetic 25488 | . 695 239 1474 268 1192 723 3205 110 304 . 33 156 425 298 . 1758 459 . . 574 1167 6351 3204 670 785 103 400 895 . Thermal 32246 | 123 . 176 823 . 1456 2167 . . . . . 127 . 80 . 1339 1490 2435 4708 2337 1090 4830 . 675 5020 1316 981 994 79 Explosive 14317 | . 119 842 594 631 217 55 1472 120 238 . . . 428 475 . 8028 332 . . . . 634 132 . . . . . . Electromagnetic 293 | . . . . . . . . . . . . . . . . . . . . . . 185 . . 108 . . . . Impact 1296 | . . . . . 184 . . . . . . . . . . 1034 78 . . . . . . . . . . . . Slashing 156 | . . . . . . 66 90 . . . . . . . . . . . . . . . . . . . . . . Piercing 1553 | . . . . . . . . . . . . . . . . . 164 . . . . . . . 1156 . . . 233 Entropic 5240 | . . . . . . . . . . . . . . . . . . . . . . . . . . . . 5240 . Highest Corruption 41 | . . . . . . . 3 3 3 3 3 . . . . 4 41 3 3 15 15 21 . . 5 5 5 5 4 Average Corruption 6 | . . . . . . . 2 3 3 3 3 . . . . 4 17 2 3 12 11 11 . . 3 5 5 4 4 Corruption Purged 23 | . . . . . . . . . . . . . . . . . . . . . 23 . . . . . . . . Corruption Blocked . | . . . . . . . . . . . . . . . . . . . . . . . . . . . . . . Effects 393 | . . . . . . . 10 11 11 5 19 . . . . 27 45 12 37 21 12 101 . . 19 45 15 2 1 Message Errors 80 | . . . . . . . 1 2 1 2 1 . . . . 1 10 6 10 2 1 30 . . 3 7 3 . . Matter Fused 78 | . . . . . . . 3 4 2 1 2 . . . . 7 11 1 7 5 1 12 . . 4 11 5 2 . Heat Flow Errors 43 | . . . . . . . 2 1 1 . 3 . . . . 5 4 2 6 2 1 6 . . 4 5 1 . . Energy Discharges 53 | . . . . . . . 1 1 4 2 5 . . . . 5 7 1 4 4 1 11 . . . 4 3 . . Parts Rejected 4 | . . . . . . . 1 . . . . . . . . . . . 2 . . 1 . . . . . . . Parts Fused 8 | . . . . . . . . . . . 1 . . . . . 1 . 2 1 . 1 . . 1 . 1 . . Data Loss (minor) 55 | . . . . . . . 1 . 1 . 3 . . . . 6 5 1 . 5 3 14 . . 3 11 1 . 1 Data Loss (major) 20 | . . . . . . . . 2 1 . 1 . . . . 1 2 . 2 1 1 3 . . 1 4 1 . . Misfires 13 | . . . . . . . . . 1 . 1 . . . . . 2 . 3 . 1 4 . . 1 . . . . Alerts 11 | . . . . . . . . 1 . . 2 . . . . 2 2 . . . 1 1 . . 1 1 . . . Misdirections 1 | . . . . . . . . . . . . . . . . . . . . . . 1 . . . . . . . Weapon Failures 27 | . . . . . . . 1 . . . . . . . . . 1 1 1 1 2 17 . . 1 2 . . . Overload Shots . | . . . . . . . . . . . . . . . . . . . . . . . . . . . . . . Overflow Damage 2386 | . 24 43 85 . 30 41 104 . . . . 10 28 . . 688 82 146 97 16 57 209 . 21 272 19 51 218 145 Projectiles 1094 | . 12 . 21 . 13 . . . . . . 10 . . . 148 39 146 97 16 57 163 . 21 245 19 51 36 . Explosions 671 | . 12 43 64 . . 15 54 . . . . . 28 . . 230 . . . . . 43 . . . . . 182 . Melee 621 | . . . . . 17 26 50 . . . . . . . . 310 43 . . . . 3 . . 27 . . . 145 Knockbacks 31 | . 8 3 6 . 5 . . . . . . . . . . 7 1 . . . . 1 . . . . . . . Impact 14 | . . . . . 5 . . . . . . . . . . 7 1 . . . . 1 . . . . . . . Kinetic 17 | . 8 3 6 . . . . . . . . . . . . . . . . . . . . . . . . . . Secondary . | . . . . . . . . . . . . . . . . . . . . . . . . . . . . . . Self-Inflicted Damage 816 | . 34 22 128 . . 11 210 . . . . . . . . 34 100 . . . . 68 73 . . . . 136 . Shots 18 | . 1 2 4 . . 1 4 . . . . . . . . 1 2 . . . . 1 1 . . . . 1 . Rammed 17 | 1 2 1 3 1 2 1 1 . . . . . . . . . . . . . . 5 . . . . . . . Targets Rammed 19 | 1 2 1 3 1 3 2 1 . . . . . . . . . . . . . . 5 . . . . . . . Kicked . | . . . . . . . . . . . . . . . . . . . . . . . . . . . . . . Crushed 2 | . . . . . 1 1 . . . . . . . . . . . . . . . . . . . . . . . Highest Temperature 420 | 210 180 8 322 21 320 351 360 203 274 . 259 160 338 290 . 287 317 243 274 239 253 232 221 420 318 246 156 93 6 Average Temperature 81 | 82 64 4 92 5 62 86 90 91 114 . 86 60 158 80 . 77 121 102 88 63 75 39 98 214 64 59 36 32 3 Received Heat Transfer 6219 | . 63 63 237 42 936 387 426 . . . . . 205 24 . 379 637 99 220 99 36 1113 171 . 870 . 114 98 . Effects 12 | . . . . . 1 . 1 . . . . . . . . . 3 1 3 . . . . 2 1 . . . . Shutdowns 1 | . . . . . . . . . . . . . . . . . . . . . . . . 1 . . . . . Energy Bleed 2 | . . . . . . . . . . . . . . . . . . 1 . . . . . . 1 . . . . Interference 7 | . . . . . 1 . . . . . . . . . . . 3 . 3 . . . . . . . . . . Short Circuit 2 | . . . . . . . 1 . . . . . . . . . . . . . . . . 1 . . . . . Siege Activations 26 | . . . . . . . . . . . . . . . . . . . . 2 3 17 3 1 . . . . . Total Turns 592 | . . . . . . . . . . . . . . . . . . . . 41 74 392 64 21 . . . . . Longest Duration 78 | . . . . . . . . . . . . . . . . . . . . 30 34 78 32 21 . . . . . Robots Corrupted . | . . . . . . . . . . . . . . . . . . . . . . . . . . . . . . Combat Hostiles . | . . . . . . . . . . . . . . . . . . . . . . . . . . . . . . Parts Fried 8 | . . . . . . . . . . . . . . . . . 2 . . . . 6 . . . . . . . Impact Corruptions 7 | . . . . . 1 . . . . . . . . . . 4 1 . . . . 1 . . . . . . . Robots Melted 4 | . . . . . . 1 . . . . . . . . . . . . 2 . . . . . 1 . . . . Combat Hostiles 4 | . . . . . . 1 . . . . . . . . . . . . 2 . . . . . 1 . . . . Parts Melted 43 | . . . . . 2 14 . . . . . . . . . . . . 6 4 . . . . 10 3 3 1 . Heat Transferred 26081 | 311 . 250 1591 . 3219 5291 . . . . . . . . . 725 850 1125 2224 1275 575 2518 . 375 3755 774 575 537 111 Parts Sabotaged . | . . . . . . . . . . . . . . . . . . . . . . . . . . . . . . Parts Stolen . | . . . . . . . . . . . . . . . . . . . . . . . . . . . . . . Parts Stripped . | . . . . . . . . . . . . . . . . . . . . . . . . . . . . . . Power Chain Reactions 1 | . . . . . . . . . . . . . . . . . . . 1 . . . . . . . . . . Missiles Intercepted 12 | . . . . . . . . . . . . . . . . . . . . . . . . . . . . 12 . Alert | -11 -10 -10 -9 -9 -8 -8 -7 -7 -7 -7 -6 -6 -6 -6 -6 -6 -5 -5 -5 -5 -5 -5 -4 -4 -4 -4 -4 -4 -3 ------- Run | Yrd Mat Min Mat Min Mat Sto Fac Low Low Dat Pro Fac Low Low Zio Dee Pro Fac Ext Cet Arc Hub Fac Was Fac Upp Upp War Pro Peak Influence 1472 | 20 226 484 568 403 348 561 717 . . . . 266 . . . . . 503 564 540 419 1472 1419 372 773 . . . . Initial 721 | . 13 55 120 171 74 138 254 . . . . . . . . . . 363 246 115 166 76 721 372 120 . . . . Average 359 | 9 102 261 296 312 179 262 409 . . . . 81 . . . . . 394 343 402 300 667 1082 265 358 . . . . Maximum Alert Level 4 | . 1 2 2 2 1 2 3 . . . . 1 . . . . . 2 2 2 2 4 4 1 3 . . . . Low Security (%) 29 | 100 83 3 12 . 57 48 16 . . . . 91 . . . . . . 13 7 3 13 . 48 35 . . . . Level 1 38 | . 16 95 65 99 42 23 37 . . . . 8 . . . . . 50 52 27 65 19 . 51 25 . . . . Level 2 20 | . . 1 21 . . 27 34 . . . . . . . . . . 49 34 64 30 23 . . 25 . . . . Level 3 6 | . . . . . . . 11 . . . . . . . . . . . . . . 19 45 . 14 . . . . Level 4 5 | . . . . . . . . . . . . . . . . . . . . . . 23 54 . . . . . . Level 5 . | . . . . . . . . . . . . . . . . . . . . . . . . . . . . . . High Security . | . . . . . . . . . . . . . . . . . . . . . . . . . . . . . . Max Security . | . . . . . . . . . . . . . . . . . . . . . . . . . . . . . . Squads Dispatched 74 | . 3 . 3 1 4 3 6 . . . . 6 . . . . . 4 2 . . 21 9 . 12 . . . . Investigation 21 | . 2 . 3 . 1 . . . . . . 4 . . . . . . 1 . . 5 2 . 3 . . . . Extermination 13 | . . . . . . . 1 . . . . . . . . . . 3 . . . 4 1 . 4 . . . . Reinforcement 21 | . 1 . . . 3 1 4 . . . . 2 . . . . . 1 1 . . 5 1 . 2 . . . . Assault 8 | . . . . 1 . 2 . . . . . . . . . . . . . . . 2 3 . . . . . . Garrison 11 | . . . . . . . 1 . . . . . . . . . . . . . . 5 2 . 3 . . . . Intercept . | . . . . . . . . . . . . . . . . . . . . . . . . . . . . . . Searches Triggered 1 | . . . . . . . . . . . . . . . . . . 1 . . . . . . . . . . . Construction Impeded 6 | . . . . . 2 . . . . . . . . . . . . 1 1 . . 1 . . 1 . . . . Haulers Reinforced . | . . . . . . . . . . . . . . . . . . . . . . . . . . . . . . Active Scanning Responses 3 | . . . . . . . . . . . . 3 . . . . . . . . . . . . . . . . . Cargo Convoy Interrupts 1 | . . . . . . . 1 . . . . . . . . . . . . . . . . . . . . . . Stealth | -11 -10 -10 -9 -9 -8 -8 -7 -7 -7 -7 -6 -6 -6 -6 -6 -6 -5 -5 -5 -5 -5 -5 -4 -4 -4 -4 -4 -4 -3 --------- Run | Yrd Mat Min Mat Min Mat Sto Fac Low Low Dat Pro Fac Low Low Zio Dee Pro Fac Ext Cet Arc Hub Fac Was Fac Upp Upp War Pro Distress Signals 19 | . . 1 3 . 2 4 3 . . . . . . . . . . . 1 2 1 2 . . . . . . . Communications Jammed 10 | . . . . . . . . . . . . . . . . . . . . . . . . . 10 . . . . Distress Signals 7 | . . . . . . . . . . . . . . . . . . . . . . . . . 7 . . . . Times Spotted 650 | . 20 13 43 14 32 36 41 . 3 . 1 6 7 5 . 81 17 19 32 20 10 80 27 6 47 11 13 59 7 Peak Tracking Total 37 | . 4 3 6 5 5 10 15 . 3 . 1 3 4 3 . 37 9 5 6 5 1 8 6 6 7 5 5 12 5 Tactical Retreats 23 | . . . 1 . 3 . 1 . . . . . . . . 4 . . . 1 . 3 1 1 2 2 1 1 2 Traps | -11 -10 -10 -9 -9 -8 -8 -7 -7 -7 -7 -6 -6 -6 -6 -6 -6 -5 -5 -5 -5 -5 -5 -4 -4 -4 -4 -4 -4 -3 ------- Run | Yrd Mat Min Mat Min Mat Sto Fac Low Low Dat Pro Fac Low Low Zio Dee Pro Fac Ext Cet Arc Hub Fac Was Fac Upp Upp War Pro Traps Triggered 19 | . 1 . 3 . . . . . . . . 2 1 . . . . . 3 . . 1 3 . 5 . . . . Indirectly . | . . . . . . . . . . . . . . . . . . . . . . . . . . . . . . Trap Hack Attempts 35 | . . . . . . . . . . . . . . . . . . . . . . 35 . . . . . . . Triggered . | . . . . . . . . . . . . . . . . . . . . . . . . . . . . . . Disarmed . | . . . . . . . . . . . . . . . . . . . . . . . . . . . . . . Reprogrammed 16 | . 4 . . . . . 6 . . . . . . . . . . . . . . 6 . . . . . . . Reused 9 | . 4 . . . . . . . . . . . . . . . . . . . . 4 . . . . . . 1 Traps Extracted . | . . . . . . . . . . . . . . . . . . . . . . . . . . . . . . Installed 1 | . . . . . . . . . . . . . . . . . . . . . . . . . . . . . 1 Triggered 27 | . 4 . . . . . . 1 . . . . 4 . . . . . . . . 4 . . . . . 11 3 Most Traps Carried 1 | . . . . . . . . . . . . . . . . . . . . . . . . . . . . . 1 Time Bombs Activated 1 | . . . . . . . . . . . . . . . . . . . . . . . . . . . . 1 . Machines | -11 -10 -10 -9 -9 -8 -8 -7 -7 -7 -7 -6 -6 -6 -6 -6 -6 -5 -5 -5 -5 -5 -5 -4 -4 -4 -4 -4 -4 -3 ---------- Run | Yrd Mat Min Mat Min Mat Sto Fac Low Low Dat Pro Fac Low Low Zio Dee Pro Fac Ext Cet Arc Hub Fac Was Fac Upp Upp War Pro Machines Disabled 52 | . 3 4 2 . 2 2 . . . . . . . . . 5 . 4 6 1 5 4 8 . 3 . 1 2 . Max in Single Turn 4 | . 1 4 1 . 1 1 . . . . . . . . . 1 . 1 1 . 1 1 4 . 1 . 1 1 . Garrison Access 4 | . . . . . . 1 . . . . . 1 . . . . . . . . . . 1 . 1 . . . . Network Hub 4 | . . . . . . . . . . . . . . . . . . . . . . 4 . . . . . . . Machines Repaired . | . . . . . . . . . . . . . . . . . . . . . . . . . . . . . . Machines Dismantled . | . . . . . . . . . . . . . . . . . . . . . . . . . . . . . . Machines Sabotaged 3 | . . . . . . . . . . . . . . . . . . . . . . 3 . . . . . . . Overloaded Fab Kills . | . . . . . . . . . . . . . . . . . . . . . . . . . . . . . . Hacking | -11 -10 -10 -9 -9 -8 -8 -7 -7 -7 -7 -6 -6 -6 -6 -6 -6 -5 -5 -5 -5 -5 -5 -4 -4 -4 -4 -4 -4 -3 --------- Run | Yrd Mat Min Mat Min Mat Sto Fac Low Low Dat Pro Fac Low Low Zio Dee Pro Fac Ext Cet Arc Hub Fac Was Fac Upp Upp War Pro Machines Accessed 102 | . 10 . 12 . 6 14 8 1 2 4 . 7 . . . . . 6 5 . . 8 4 . 10 2 . 3 . Terminals 61 | . 7 . 9 . 4 10 4 . 1 . . 2 . . . . . 3 5 . . 8 3 . 5 . . . . Fabricators 3 | . . . . . . . . . . . . . . . . . . . . . . . . . 3 . . . . Repair Stations 6 | . 1 . 1 . . 2 . . . . . 1 . . . . . . . . . . . . 1 . . . . Recycling Units 12 | . 2 . 1 . 1 1 3 . . . . 2 . . . . . 2 . . . . . . . . . . . Scanalyzers 2 | . . . 1 . 1 . . . . . . . . . . . . . . . . . . . . . . . . Garrison Access 7 | . . . . . . 1 1 . . . . 2 . . . . . 1 . . . . 1 . 1 . . . . Total Hacks 349 | . 30 . 43 . 14 31 12 1 2 28 . 11 . . . . . 10 18 . . 39 21 . 70 10 . 9 . Successful 191 | . 13 . 23 . 8 19 4 1 2 28 . 5 . . . . . 4 7 . . 17 7 . 34 10 . 9 . Failed 156 | . 16 . 19 . 6 12 8 . . . . 6 . . . . . 6 11 . . 22 14 . 36 . . . . Catastrophic 41 | . 4 . 2 . 1 4 5 . . . . 2 . . . . . 3 5 . . 6 4 . 5 . . . . Database Lockouts 2 | . 1 . 1 . . . . . . . . . . . . . . . . . . . . . . . . . . Manual 147 | . 14 . 14 . 8 8 3 . . . . 2 . . 1 . . 4 15 . . 28 9 . 40 . . 1 . Terminals 227 | . 22 . 36 . 12 22 7 . 1 . . 3 . . . . . 6 18 . . 39 18 . 43 . . . . Fabricators 23 | . . . . . . . . . . . . . . . . . . . . . . . . . 23 . . . . Repair Stations 11 | . 3 . 2 . . 3 . . . . . 1 . . . . . . . . . . . . 2 . . . . Recycling Units 22 | . 5 . 2 . 1 5 3 . . . . 3 . . . . . 3 . . . . . . . . . . . Scanalyzers 4 | . . . 3 . 1 . . . . . . . . . . . . . . . . . . . . . . . . Garrison Access 13 | . . . . . . 1 2 . . . . 4 . . . . . 1 . . . . 3 . 2 . . . . Terminal Hacks 121 | . 7 . 12 . 5 11 2 1 2 28 . 1 . . . . . 1 5 . . 8 5 . 14 10 . 9 . Record 29 | . . . . . . . . . 1 11 . . . . . . . . . . . . . . . 9 . 8 . Part Schematic 13 | . . . 1 . . . . . . 10 . . . . . . . . 1 . . . . . 1 . . . . Robot Schematic 4 | . . . . . . . . . . 4 . . . . . . . . . . . . . . . . . . . Robot Analysis 2 | . 1 . 1 . . . . . . . . . . . . . . . . . . . . . . . . . . Prototype ID Bank 6 | . 1 . 1 . . 1 . . . 3 . . . . . . . . . . . . . . . . . . . Open Door 7 | . . . . . . 3 . 1 1 . . . . . . . . . . . . . . . . 1 . 1 . Level Access Points 2 | . 1 . . . . . . . . . . . . . . . . . . . . 1 . . . . . . . Branch Access Points 4 | . 1 . 1 . . . . . . . . . . . . . . 1 . . . . . . 1 . . . . Machine Index 2 | . . . . . . . . . . . . . . . . . . . . . . . 1 . 1 . . . . Terminal Index 1 | . . . 1 . . . . . . . . . . . . . . . . . . . . . . . . . . Garrison Index 1 | . . . . . . . . . . . . 1 . . . . . . . . . . . . . . . . . Alert Level 5 | . . . . . 1 1 . . . . . . . . . . . . 1 . . 1 . . 1 . . . . Unreport Threat 17 | . . . 2 . 1 1 . . . . . . . . . . . . 2 . . 3 3 . 5 . . . . Locate Traps 11 | . 2 . 1 . 1 2 1 . . . . . . . . . . . 1 . . . 1 . 2 . . . . Reprogram Traps 2 | . 1 . . . . . 1 . . . . . . . . . . . . . . . . . . . . . . Patrol Status 1 | . . . . . 1 . . . . . . . . . . . . . . . . . . . . . . . . Recall Investigation 1 | . . . . . . . . . . . . . . . . . . . . . . . . . 1 . . . . Hauler Manifests 6 | . . . 2 . 1 2 . . . . . . . . . . . . . . . . . . 1 . . . . Zone Layout 7 | . . . 2 . . 1 . . . . . . . . . . . . . . . 3 . . 1 . . . . Fabricator Hacks 6 | . . . . . . . . . . . . . . . . . . . . . . . . . 6 . . . . Load Schematic 3 | . . . . . . . . . . . . . . . . . . . . . . . . . 3 . . . . Build 3 | . . . . . . . . . . . . . . . . . . . . . . . . . 3 . . . . Repair Station Hacks 7 | . 2 . 2 . . 1 . . . . . . . . . . . . . . . . . . 2 . . . . Scan Component 4 | . 1 . 1 . . 1 . . . . . . . . . . . . . . . . . . 1 . . . . Repair 3 | . 1 . 1 . . . . . . . . . . . . . . . . . . . . . 1 . . . . Recycling Unit Hacks 9 | . . . 1 . 1 1 2 . . . . 2 . . . . . 2 . . . . . . . . . . . Retrieve Components 9 | . . . 1 . 1 1 2 . . . . 2 . . . . . 2 . . . . . . . . . . . Scanalyzer 2 | . . . 2 . . . . . . . . . . . . . . . . . . . . . . . . . . Insert Component 1 | . . . 1 . . . . . . . . . . . . . . . . . . . . . . . . . . Analyze 1 | . . . 1 . . . . . . . . . . . . . . . . . . . . . . . . . . Garrison Access Hacks 3 | . . . . . . 1 . . . . . 1 . . . . . . . . . . . . 1 . . . . Seal Access 3 | . . . . . . 1 . . . . . 1 . . . . . . . . . . . . 1 . . . . Unauthorized Hacks 43 | . 4 . 6 . 2 5 . . . . . 1 . . . . . 1 2 . . 9 2 . 11 . . . . Terminals 27 | . 2 . 5 . 1 2 . . . . . . . . . . . . 2 . . 9 . . 6 . . . . Track 6 | . 1 . 1 . . . . . . . . . . . . . . . . . . 3 . . 1 . . . . Assimilate 2 | . . . . . . . . . . . . . . . . . . . . . . . . . 2 . . . . Botnet 10 | . 1 . 3 . . 2 . . . . . . . . . . . . 2 . . . . . 2 . . . . Disrupt 1 | . . . . . . . . . . . . . . . . . . . . . . 1 . . . . . . . Operators 3 | . . . 1 . 1 . . . . . . . . . . . . . . . . . . . 1 . . . . Sabotage 5 | . . . . . . . . . . . . . . . . . . . . . . 5 . . . . . . . Fabricators 5 | . . . . . . . . . . . . . . . . . . . . . . . . . 5 . . . . Prioritize 1 | . . . . . . . . . . . . . . . . . . . . . . . . . 1 . . . . Fabnet 3 | . . . . . . . . . . . . . . . . . . . . . . . . . 3 . . . . Haulers 1 | . . . . . . . . . . . . . . . . . . . . . . . . . 1 . . . . Repair Stations . | . . . . . . . . . . . . . . . . . . . . . . . . . . . . . . Recycling Units 7 | . 2 . . . . 3 . . . . . 1 . . . . . 1 . . . . . . . . . . . Monitor 1 | . . . . . . 1 . . . . . . . . . . . . . . . . . . . . . . . Reject 1 | . . . . . . 1 . . . . . . . . . . . . . . . . . . . . . . . Recyclers 1 | . . . . . . 1 . . . . . . . . . . . . . . . . . . . . . . . Mask 1 | . . . . . . . . . . . . . . . . . . 1 . . . . . . . . . . . Tunnel 3 | . 2 . . . . . . . . . . 1 . . . . . . . . . . . . . . . . . Scanalyzers 2 | . . . 1 . 1 . . . . . . . . . . . . . . . . . . . . . . . . Extract 2 | . . . 1 . 1 . . . . . . . . . . . . . . . . . . . . . . . . Garrison Access 2 | . . . . . . . . . . . . . . . . . . . . . . . 2 . . . . . . Broadcast 1 | . . . . . . . . . . . . . . . . . . . . . . . 1 . . . . . . Reprogram 1 | . . . . . . . . . . . . . . . . . . . . . . . 1 . . . . . . Data Cores Recovered 6 | . . . . . . 1 1 . . . . . . . . . . . . . . 2 1 . 1 . . . . Used 1 | . . . . . . . 1 . . . . . . . . . . . . . . . . . . . . . . Hacking Detections 78 | . 9 . 11 . 4 12 7 . 1 . . 4 . . . . . 6 4 . . 7 4 . 9 . . . . Full Trace Events 9 | . 2 . 2 . . 1 . . . . . . . . . . . . . . . . 1 . 3 . . . . Feedback Events . | . . . . . . . . . . . . . . . . . . . . . . . . . . . . . . Feedback Blocked . | . . . . . . . . . . . . . . . . . . . . . . . . . . . . . . Robot Schematics Acquired 5 | . . . . . . . . . . 4 . . . . 1 . . . . . . . . . . . . . . Robots Built . | . . . . . . . . . . . . . . . . . . . . . . . . . . . . . . Authchips . | . . . . . . . . . . . . . . . . . . . . . . . . . . . . . . Time . | . . . . . . . . . . . . . . . . . . . . . . . . . . . . . . Total Robot Build Rating . | . . . . . . . . . . . . . . . . . . . . . . . . . . . . . . Part Schematics Acquired 41 | . . . 8 . 8 . . . . 10 . . . . 13 . . . 1 . . . . . 1 . . . . Parts Built 3 | . . . . . . . . . . . . . . . . . . . . . . . . . 3 . . . . Authchips . | . . . . . . . . . . . . . . . . . . . . . . . . . . . . . . Time 128 | . . . . . . . . . . . . . . . . . . . . . . . . . 128 . . . . Total Part Build Rating 19 | . . . . . . . . . . . . . . . . . . . . . . . . . 19 . . . . Parts Repaired 3 | . 1 . 1 . . . . . . . . . . . . . . . . . . . . . 1 . . . . Time 141 | . 26 . 26 . . . . . . . . . . . . . . . . . . . . . 89 . . . . Parts Recycled . | . . . . . . . . . . . . . . . . . . . . . . . . . . . . . . Recycled Matter . | . . . . . . . . . . . . . . . . . . . . . . . . . . . . . . Retrieved Matter . | . . . . . . . . . . . . . . . . . . . . . . . . . . . . . . Retrieved Components 43 | . . . 6 . 9 9 3 . . . . 5 . . . . . 11 . . . . . . . . . . . Parts Scanalyzed 1 | . . . 1 . . . . . . . . . . . . . . . . . . . . . . . . . . Part Schematics Acquired 1 | . . . 1 . . . . . . . . . . . . . . . . . . . . . . . . . . Parts Damaged . | . . . . . . . . . . . . . . . . . . . . . . . . . . . . . . Bothacking | -11 -10 -10 -9 -9 -8 -8 -7 -7 -7 -7 -6 -6 -6 -6 -6 -6 -5 -5 -5 -5 -5 -5 -4 -4 -4 -4 -4 -4 -3 ------------ Run | Yrd Mat Min Mat Min Mat Sto Fac Low Low Dat Pro Fac Low Low Zio Dee Pro Fac Ext Cet Arc Hub Fac Was Fac Upp Upp War Pro Used RIF Installer . | . . . . . . . . . . . . . . . . . . . . . . . . . . . . . . Robots Hacked . | . . . . . . . . . . . . . . . . . . . . . . . . . . . . . . Non-combat . | . . . . . . . . . . . . . . . . . . . . . . . . . . . . . . Combat . | . . . . . . . . . . . . . . . . . . . . . . . . . . . . . . Robot Hacks Applied . | . . . . . . . . . . . . . . . . . . . . . . . . . . . . . . Relay Couplers Released 2 | . . . . . . . . . . . . . . . . . . . . . . . 2 . . . . . . Machine Destruction 2 | . . . . . . . . . . . . . . . . . . . . . . . 2 . . . . . . Fabnet Peak Effective % 6 | . . . . . . . . . . . . . . . . . . . . . . . . . . . . . 6 Robots Rewired 13 | . . . . . . . . . . . . . . . . . . . 13 . . . . . . . . . . Allies Hacked 1 | . . . . . . . . . . . . . . . . . . . . . . . . . 1 . . . . Hacks Repelled . | . . . . . . . . . . . . . . . . . . . . . . . . . . . . . . Allies | -11 -10 -10 -9 -9 -8 -8 -7 -7 -7 -7 -6 -6 -6 -6 -6 -6 -5 -5 -5 -5 -5 -5 -4 -4 -4 -4 -4 -4 -3 -------- Run | Yrd Mat Min Mat Min Mat Sto Fac Low Low Dat Pro Fac Low Low Zio Dee Pro Fac Ext Cet Arc Hub Fac Was Fac Upp Upp War Pro Total Allies 47 | . . . . 1 . 2 . . . . . . . . 2 . . . 20 . . . 3 19 . . . . . Largest Group 19 | . . . . 1 . 2 2 . . . . . . . 2 2 . . 9 7 . . 3 19 17 . . . . Highest-Rated Group 684 | . . . . 31 . 62 62 . . . . . . . 192 192 . . 335 335 . . 36 684 602 . . . . Highest-Rated Ally 159 | . . . . 31 . 31 31 . . . . . . . 96 96 . . 159 159 . . 12 50 46 . . . . Total Orders 3 | . . . . . . 1 . . . . . . . . . . 2 . . . . . . . . . . . . EXPLORE 2 | . . . . . . 1 . . . . . . . . . . 1 . . . . . . . . . . . . RETURN 1 | . . . . . . . . . . . . . . . . . 1 . . . . . . . . . . . . Ally Attacks 546 | . . . . 21 . 32 1 . . . . . . . . 36 . . 146 48 . . 8 110 144 . . . . Total Damage 12568 | . . . . 268 . 481 22 . . . . . . . . 1058 . . 2727 1118 . . 80 3816 2998 . . . . Kills 58 | . . . . 1 . 7 1 . . . . . . . . 8 . . 11 8 . . 1 7 14 . . . . Allies Corrupted . | . . . . . . . . . . . . . . . . . . . . . . . . . . . . . . Allies Melted . | . . . . . . . . . . . . . . . . . . . . . . . . . . . . . . Intel | -11 -10 -10 -9 -9 -8 -8 -7 -7 -7 -7 -6 -6 -6 -6 -6 -6 -5 -5 -5 -5 -5 -5 -4 -4 -4 -4 -4 -4 -3 ------- Run | Yrd Mat Min Mat Min Mat Sto Fac Low Low Dat Pro Fac Low Low Zio Dee Pro Fac Ext Cet Arc Hub Fac Was Fac Upp Upp War Pro Robot Analysis Total 2 | . 1 . 1 . . . . . . . . . . . . . . . . . . . . . . . . . . Derelict Logs Recovered 11 | . . . . 2 . . . . . . 2 . 1 1 . . 2 . . . . . . . . 2 1 . . Drone Launches 15 | . . . . . . 14 . . . . . . . . . . 1 . . . . . . . . . . . . Drone Recoveries 2 | . . . . . . 1 . . . . . . . . . . 1 . . . . . . . . . . . . Exploration | -11 -10 -10 -9 -9 -8 -8 -7 -7 -7 -7 -6 -6 -6 -6 -6 -6 -5 -5 -5 -5 -5 -5 -4 -4 -4 -4 -4 -4 -3 ------------- Run | Yrd Mat Min Mat Min Mat Sto Fac Low Low Dat Pro Fac Low Low Zio Dee Pro Fac Ext Cet Arc Hub Fac Was Fac Upp Upp War Pro Turns Passed 36367 | 126 1771 549 1484 803 1407 1578 1293 683 734 154 841 722 949 1032 1503 5103 1180 1199 2047 518 668 2206 873 775 1867 1863 572 1676 191 Spaces Moved 18162 | 56 664 196 684 483 589 757 618 495 542 123 638 429 592 646 941 2873 367 454 807 218 262 863 369 432 765 736 268 1006 289 Core 454 | 9 . . . . . . . . . . . . . . . . . . . . . . . 134 . . . 22 289 Treads 5482 | 47 664 196 684 483 589 757 493 . 1 . . . . . 1 9 . . . 179 262 863 254 . . . . . . Legs 6564 | . . . . . . . 57 . . . . . . . . 1674 367 454 807 39 . . 115 298 765 736 268 984 . Wheels 5662 | . . . . . . . 68 495 541 123 638 429 592 646 940 1190 . . . . . . . . . . . . . Hover . | . . . . . . . . . . . . . . . . . . . . . . . . . . . . . . Flight . | . . . . . . . . . . . . . . . . . . . . . . . . . . . . . . Fastest Speed 50 | 50 160 240 155 155 150 150 130 130 115 115 130 130 145 145 145 115 132 183 183 160 160 160 130 50 130 135 135 50 50 Average Speed 152 | 142 237 240 161 155 152 151 162 130 130 119 130 135 145 152 145 136 150 183 183 164 160 160 173 118 161 181 160 134 50 Slowest Speed 330 | 160 320 240 240 155 156 152 320 130 250 130 130 145 145 160 330 285 192 189 183 240 160 240 240 180 186 186 185 185 150 Overloaded Moves . | . . . . . . . . . . . . . . . . . . . . . . . . . . . . . . Propulsion Burnouts . | . . . . . . . . . . . . . . . . . . . . . . . . . . . . . . Robots Hopped . | . . . . . . . . . . . . . . . . . . . . . . . . . . . . . . Cave-ins Triggered . | . . . . . . . . . . . . . . . . . . . . . . . . . . . . . . Exploration Rate (%) 62 | 5 88 57 67 92 57 97 18 60 74 69 86 12 76 75 81 91 70 11 83 59 95 66 12 92 20 66 45 94 54 Regions Visited 29 Branch Regions 20 Pre-discovered Areas 10 | . 2 1 . 1 . . . . . 1 . 1 . . 1 . 1 . . . . . . . . 2 . . . Known Exits Taken 18 | . 1 1 1 . 1 . 1 1 1 1 1 1 1 1 . . 1 1 . . . 1 . . 1 1 1 . . Unknown Exits Taken 9 | 1 . . . 1 . 1 . . . . . . . . 1 1 . . 1 1 1 . . . . . . 1 . Scrap Searched 30 | . . 1 . 2 . . . 6 3 . 4 . 2 2 2 . 2 . . . . . . . . 1 3 . 2 Spaces Dug 154 | . 1 . 9 . 5 1 2 . . . 2 9 20 1 2 7 . 16 . . . 15 41 . 8 4 . 11 . Terrain Destroyed 1314 | . 11 75 38 50 34 20 22 13 3 . 2 11 77 66 2 18 69 64 41 18 19 341 100 4 56 44 24 92 . Melee 25 | . . . . . 5 1 . . . . . . . . 2 2 . . . . . . 1 . 3 . . 11 . Projectile 538 | . 2 . 4 . . . 2 . . . 2 11 . 2 . 11 25 64 36 18 18 151 43 4 53 44 24 24 . AOE 750 | . 9 75 34 50 29 19 20 13 3 . . . 77 64 . 5 44 . 5 . . 190 56 . . . . 57 . Terrain Rammed . | . . . . . . . . . . . . . . . . . . . . . . . . . . . . . . Walls Destroyed . | . . . . . . . . . . . . . . . . . . . . . . . . . . . . . . Machines Disabled . | . . . . . . . . . . . . . . . . . . . . . . . . . . . . . . Actions | -11 -10 -10 -9 -9 -8 -8 -7 -7 -7 -7 -6 -6 -6 -6 -6 -6 -5 -5 -5 -5 -5 -5 -4 -4 -4 -4 -4 -4 -3 --------- Run | Yrd Mat Min Mat Min Mat Sto Fac Low Low Dat Pro Fac Low Low Zio Dee Pro Fac Ext Cet Arc Hub Fac Was Fac Upp Upp War Pro Total 24541 | 78 785 234 910 509 895 1052 838 531 560 130 645 552 667 680 1067 3908 905 720 1278 319 441 1365 494 671 1175 1208 362 1236 326 Wait 3654 | 2 43 7 70 3 116 130 57 30 3 . . 89 59 13 96 680 444 186 228 20 117 239 23 188 228 428 49 90 16 Move 18134 | 55 663 195 683 482 588 756 617 494 541 122 637 428 591 645 940 2872 366 453 806 217 261 862 369 431 764 735 267 1005 289 Hop . | . . . . . . . . . . . . . . . . . . . . . . . . . . . . . . Pick Up 241 | 3 20 1 22 1 20 15 11 1 1 . 1 5 . 3 2 35 4 3 10 13 3 9 9 2 20 4 8 13 2 Fast Attach 215 | 7 7 . 3 . 9 10 21 . 1 4 . 2 . 1 4 48 6 3 6 10 12 15 3 8 14 1 2 16 2 Attach 90 | . 2 . 5 . 11 1 8 . . . . 3 . . 4 8 4 1 . 2 1 7 6 1 4 3 3 11 5 Detach 135 | . 3 . . . 1 2 8 . . . . 1 . . 4 29 9 9 6 9 2 4 4 7 13 9 2 10 3 Swap 215 | . 5 6 21 7 27 21 13 2 3 . 2 2 4 2 9 10 6 . 1 4 4 33 18 1 6 . 4 4 . Drop 355 | . 6 1 25 2 25 35 27 1 1 4 1 4 . 3 3 78 7 4 11 17 10 15 10 15 11 1 7 30 1 Fire 1149 | 10 34 23 78 13 81 70 74 3 10 . 4 18 13 13 . 127 49 61 45 27 31 139 46 18 73 27 19 40 3 Melee 118 | . . . . . 14 4 1 . . . . . . . 5 19 10 . . . . . 2 . 42 . 1 16 4 Ram . | . . . . . . . . . . . . . . . . . . . . . . . . . . . . . . Kick . | . . . . . . . . . . . . . . . . . . . . . . . . . . . . . . Crush 19 | 1 2 1 3 1 3 2 1 . . . . . . . . . . . . . . 5 . . . . . . . Escape Stasis 16 | . . . . . . . . . . . . . . . . . . . 10 . . 2 4 . . . . . . Rewire 157 | . . . . . . . . . . . . . . . . 2 . . 155 . . . . . . . . . . Trap 37 | . . . . . . . . . . . . . . . . . . . . . . 35 . . . . . 1 1 Miscellaneous 6 | . . . . . . 6 . . . . . . . . . . . . . . . . . . . . . . . Route ------- -11/Scrapyard -10/Materials (discovered 4 exits: *Mat x3 / *Min) -10/Mines (discovered 2 exits: *Mat x2) -9/Materials (discovered 2 exits: *Mat / *Min) -9/Mines (discovered 2 exits: *Mat x2) -8/Materials (discovered 3 exits: *Fac x2 / *Sto) -8/Storage -7/Factory -7/Lower Caves -7/Lower Caves (discovered 2 exits: *Fac / *Dat) -7/Data Miner -6/Proximity Caves -6/Factory (discovered 3 exits: Fac / *Low x2) -6/Lower Caves -6/Lower Caves (discovered 2 exits: *Fac / *Zio) -6/Zion (discovered 2 exits: [*Dee] / [*Pro]) -6/Deep Caves -5/Proximity Caves -5/Factory (discovered 5 exits: Fac / *Upp x2 / *Ext x2) -5/Extension (discovered 2 exits: *Fac / [*Cet]) -5/Cetus (discovered 2 exits: *Fac / [*Arc]) -5/Archives (discovered 3 exits: *Fac / *Hub x2) -5/Hub_04(d) (discovered 4 exits: *Fac x4) -4/Factory -4/Waste -4/Factory (discovered 3 exits: [*Res] / *Upp x2) -4/Upper Caves -4/Upper Caves (discovered 2 exits: [*Res] / *War) -4/Warlord -3/Proximity Caves History --------- Turn | Location | Event 19 | -11/Scrapyard | Discovered new exit (range 15) 127 | -11/Scrapyard | Entered Materials 303 | -10/Materials | Build established: Mutant 692 | -10/Materials | Discovered new exit (range 8) 763 | -10/Materials | Identified exit to Materials 1057 | -10/Materials | Discovered exit to Materials (range 13) 1112 | -10/Materials | Central database locked down 1379 | -10/Materials | Identified exit to Mines 1720 | -10/Materials | Repaired Lgt. Treads? 1898 | -10/Materials | Entered Mines 1980 | -10/Mines | Excavation squad dispatched 1980 | -10/Mines | A large section of the Mines collapsed 1994 | -10/Mines | Received a Rocket Launcher from a helpful Derelict 2230 | -10/Mines | Excavation squad dispatched 2374 | -10/Mines | Discovered exit to Materials (range 13) 2434 | -10/Mines | Learned location of Storage (-8) 2435 | -10/Mines | Discovered exit to Materials (range 6) 2447 | -10/Mines | Entered Materials 2447 | -9/Materials | Evolved 2 slots: Propulsion x1, Weapon x1 2757 | -9/Materials | Build established: Gunner 2865 | -9/Materials | Discovered new exit (range 15) 2902 | -9/Materials | Identified exit to Mines 2948 | -9/Materials | Central database locked down 3116 | -9/Materials | Repaired Lgt. Treads 3931 | -9/Materials | Entered Mines 4155 | -9/Mines | Discovered new exit (range 12) 4167 | -9/Mines | Met a Derelict testing a Signal Generator 4274 | -9/Mines | Discovered new exit (range 10) 4663 | -9/Mines | Build established: Tank 4734 | -9/Mines | Entered Materials 4734 | -8/Materials | Evolved 2 slots: Propulsion x1, Utility x1 4735 | -8/Materials | Identified exit to Storage 5392 | -8/Materials | Discovered new exit (range 4) 5640 | -8/Materials | Lost 3 parts (2n1w) 5808 | -8/Materials | Discovered new exit (range 5) 5839 | -8/Materials | Build established: Scavenger-Tank 6141 | -8/Materials | Entered Storage 6356 | -8/Storage | Build established: Tank 6652 | -8/Storage | Lost 6 allies 7342 | -8/Storage | Discovered new exit (range 15) 7364 | -8/Storage | Met a pair of Derelict thieves 7572 | -8/Storage | Build established: Scavenger-Tank 7719 | -8/Storage | Entered Factory 7719 | -7/Factory | Accompanied by 2 allies 7719 | -7/Factory | Evolved 2 slots: Utility x1, Weapon x1 8119 | -7/Factory | Discovered new exit (range 4) 8403 | -7/Factory | Cargo convoy interrupted 8406 | -7/Factory | Garrison activated, responded to threat 8470 | -7/Factory | Destroyed 13 combat bots 8485 | -7/Factory | Found Prototype Processor 8485 | -7/Factory | Identified Exp. Terrain Scan Processor 8499 | -7/Factory | Found Exp. Terrain Scan Processor 8717 | -7/Factory | Build established: Gunner 8781 | -7/Factory | Found Prototype Device 8781 | -7/Factory | Identified Active Sensor Suite 9005 | -7/Factory | Identified exit to Lower Caves 9012 | -7/Factory | Entered Lower Caves 9032 | -7/Lower Caves | Build established: Skirmisher 9445 | -7/Lower Caves | Discovered new exit (range 16) 9464 | -7/Lower Caves | Identified exit to Lower Caves 9695 | -7/Lower Caves | Entered another Lower Caves area 9729 | -7/Lower Caves | Discovered new exit (range 13) 9747 | -7/Lower Caves | Identified exit to Factory 10000 | -7/Lower Caves | Build established: Scavenger-Skirmisher 10236 | -7/Lower Caves | Discovered new exit (range 9) 10245 | -7/Lower Caves | Identified exit to Data Miner 10330 | -7/Lower Caves | Encountered a Warlord checkpoint 10429 | -7/Lower Caves | Entered Data Miner 10431 | -7/Data Miner | Discovered new exit (range 6) 10453 | -7/Data Miner | Met Data Miner 10476 | -7/Data Miner | Learned location of Section 7 (-2) 10476 | -7/Data Miner | Acquired the access code to Warlord's prototype stash 10494 | -7/Data Miner | Received God Mode back door access code from Data Miner 10579 | -7/Data Miner | Identified exit to Proximity Caves 10583 | -7/Data Miner | Entered Proximity Caves 10661 | -6/Proximity Caves | Learned location of 1 exit from Factory 11410 | -6/Proximity Caves | Discovered exit to Factory (range 8) 11424 | -6/Proximity Caves | Entered Factory 11424 | -6/Factory | Evolved 2 slots: Power x1, Utility x1 11425 | -6/Factory | Identified exit to Lower Caves 11426 | -6/Factory | Identified exit to Factory 12001 | -6/Factory | Discovered exit to Lower Caves (range 6) 12146 | -6/Factory | Entered Lower Caves 12512 | -6/Lower Caves | Learned Factory garrison access intel 12844 | -6/Lower Caves | Encountered a Warlord checkpoint 12908 | -6/Lower Caves | Discovered new exit (range 13) 12946 | -6/Lower Caves | Attracted the attention of an 0b10 checkpoint 13035 | -6/Lower Caves | Identified exit to Lower Caves 13095 | -6/Lower Caves | Entered another Lower Caves area 13151 | -6/Lower Caves | Encountered a Warlord checkpoint 13172 | -6/Lower Caves | Discovered exit to Factory (range 4) 13554 | -6/Lower Caves | Learned Factory interactive machine intel 13705 | -6/Lower Caves | Discovered new exit (range 6) 13711 | -6/Lower Caves | Identified exit to Zion 13718 | -6/Lower Caves | Attracted the attention of an 0b10 checkpoint 14127 | -6/Lower Caves | Entered Zion 14175 | -6/Zion | Given the Hacking Drone Bay 14233 | -6/Zion | Discovered new exit (range 16) 14430 | -6/Zion | Found CR-A16's Pointy Stick 14585 | -6/Zion | Given A8's code to call for help 14649 | -6/Zion | Learned location of Warlord (-4) 14907 | -6/Zion | Build established: Scavenger-Assassin 15067 | -6/Zion | Found Prototype Device 15067 | -6/Zion | Identified Mobile Refinery Mk. CCLXVII 15391 | -6/Zion | Build established: Tank 15559 | -6/Zion | Discovered new exit (range 5) 15560 | -6/Zion | Saw the warning signs outside the Deep Caves entrance 15574 | -6/Zion | Enhanced Grunt warped into view, answering call for help 15577 | -6/Zion | Enhanced Grunt warped into view, answering call for help 15630 | -6/Zion | Entered Deep Caves 15630 | -6/Deep Caves | Accompanied by 2 allies 15912 | -6/Deep Caves | Attacked by Z-Imprinter 15926 | -6/Deep Caves | Destroyed Z-Imprinter 15965 | -6/Deep Caves | Found Prototype Protection 15965 | -6/Deep Caves | Identified Zio. Weapon Casing 16142 | -6/Deep Caves | Found Prototype Device 16142 | -6/Deep Caves | Identified Exp. Thermal Shield 16254 | -6/Deep Caves | Build established: Scavenger-Tank 16393 | -6/Deep Caves | Z-Facility disabled 16985 | -6/Deep Caves | Found Zio. Weapon Casing 16988 | -6/Deep Caves | Found Zio. Weapon Casing 17185 | -6/Deep Caves | Discovered new exit (range 7) 17610 | -6/Deep Caves | Found Prototype Protection 17610 | -6/Deep Caves | Identified Zio. Heavy Carapace 17616 | -6/Deep Caves | Found Zio. Heavy Carapace 17721 | -6/Deep Caves | Spotted as-66237 17779 | -6/Deep Caves | Destroyed as-66237 17800 | -6/Deep Caves | Build established: Scavenger-Mutant 17805 | -6/Deep Caves | Lost 3 parts (1p2u) 17957 | -6/Deep Caves | Found Prototype Device 17957 | -6/Deep Caves | Identified Supersonic Drone Bay 18354 | -6/Deep Caves | Spotted as-26200 18397 | -6/Deep Caves | Destroyed as-26200 18402 | -6/Deep Caves | Found GOLEM Unit 18424 | -6/Deep Caves | Lost 3 parts (1n2u) 19372 | -6/Deep Caves | Build established: Scavenger-Golem 19563 | -6/Deep Caves | Exposed GOLEM chamber 19564 | -6/Deep Caves | Triggered Deep Caves wall 19592 | -6/Deep Caves | Destroyed AS-57685 19615 | -6/Deep Caves | Lost 3 parts (3u) 19622 | -6/Deep Caves | Destroyed AS-36856 19696 | -6/Deep Caves | Found GOLEM Unit 19699 | -6/Deep Caves | Destroyed 58 combat bots 19717 | -6/Deep Caves | Build established: Golem 20559 | -6/Deep Caves | Found GOLEM Unit 20682 | -6/Deep Caves | Found Zio. Weapon Casing 20733 | -6/Deep Caves | Entered Proximity Caves 20737 | -5/Proximity Caves | Spotter reported a threat 20759 | -5/Proximity Caves | Learned location of 1 exit from Factory 20771 | -5/Proximity Caves | Attracted the attention of an 0b10 checkpoint 20904 | -5/Proximity Caves | Spotted B-75 Beast 20957 | -5/Proximity Caves | Revealed the true nature of CR-A16's Pointy Stick 20960 | -5/Proximity Caves | Destroyed B-75 Beast 21125 | -5/Proximity Caves | Spotter reported a threat 21130 | -5/Proximity Caves | Core integrity fell below 50% 21235 | -5/Proximity Caves | Lost 8 parts (2p1n1u4w) 21275 | -5/Proximity Caves | System corruption reached 10% 21428 | -5/Proximity Caves | Core integrity fell below 20% 21515 | -5/Proximity Caves | Discovered exit to Factory (range 8) 21851 | -5/Proximity Caves | System corruption reached 30% 21913 | -5/Proximity Caves | Entered Factory 21913 | -5/Factory | Evolved 2 slots: Utility x2 21914 | -5/Factory | Identified exit to Factory 21915 | -5/Factory | Loaded intel: 53 interactive machine locations 21916 | -5/Factory | Loaded intel: 4 garrison access locations 22213 | -5/Factory | Search patrols dispatched 22223 | -5/Factory | Identified exit to Upper Caves 22223 | -5/Factory | Identified exit to Extension 23112 | -5/Factory | Entered Extension 23329 | -5/Extension | Rescued a captive Derelict 23360 | -5/Extension | Found Imp. Powered Armor 23363 | -5/Extension | Found Imp. Powered Armor 23793 | -5/Extension | Rescued a captive Derelict 23794 | -5/Extension | Rescued a captive Derelict 23998 | -5/Extension | Spotted B-75 Beast 24014 | -5/Extension | Build established: Commander-Golem 24027 | -5/Extension | Allies destroyed B-75 Beast 24035 | -5/Extension | Spotted B-75 Beast 24052 | -5/Extension | Allies destroyed B-75 Beast 24128 | -5/Extension | Lost 4 allies 24146 | -5/Extension | Rescued a captive Derelict 24280 | -5/Extension | Lost 4 allies 24368 | -5/Extension | Rescued a captive Derelict 24405 | -5/Extension | Build established: Golem 24872 | -5/Extension | Build established: Commander-Golem 24909 | -5/Extension | Rescued A7 24953 | -5/Extension | Rescued a captive Derelict 24990 | -5/Extension | Discovered exit to Factory (range 10) 24992 | -5/Extension | Discovered new exit (range 6) 25159 | -5/Extension | Entered Cetus 25159 | -5/Cetus | Accompanied by 7 allies (A7) 25164 | -5/Cetus | Acquired a Cetus Manufacturing Module code from A7 25180 | -5/Cetus | Spotted Cetus Guard 25180 | -5/Cetus | Spotted Cetus Guard 25184 | -5/Cetus | Spotted Cetus Guard 25196 | -5/Cetus | Destroyed Cetus Guard 25197 | -5/Cetus | Spotted Cetus Guard 25199 | -5/Cetus | Allies destroyed Cetus Guard 25199 | -5/Cetus | Allies destroyed Cetus Guard 25200 | -5/Cetus | Allies destroyed Cetus Guard 25270 | -5/Cetus | System corruption reached 10% 25314 | -5/Cetus | Cetus Manufacturing Module disabled 25351 | -5/Cetus | Lost 4 allies 25364 | -5/Cetus | Discovered new exit (range 22) 25400 | -5/Cetus | Spotted Cetus Guard 25402 | -5/Cetus | Spotted Cetus Guard 25402 | -5/Cetus | Spotted Cetus Guard 25412 | -5/Cetus | Destroyed Cetus Guard 25412 | -5/Cetus | Spotted Cetus Guard 25423 | -5/Cetus | Destroyed Cetus Guard 25428 | -5/Cetus | Destroyed Cetus Guard 25436 | -5/Cetus | Destroyed Cetus Guard 25449 | -5/Cetus | Found Prototype Protection 25449 | -5/Cetus | Identified Med. Regenerative Plating 25459 | -5/Cetus | Extracted ID and sensor layout for unrecognized location from A7's data core 25459 | -5/Cetus | Discovered exit to Factory (range 21) 25485 | -5/Cetus | Met Revision 17 25489 | -5/Cetus | Murdered Revision 17 25489 | -5/Cetus | Destroyed Revision 17 25677 | -5/Cetus | Entered Archives 25795 | -5/Archives | Build established: Scavenger-Tank 25880 | -5/Archives | Discovered exit to Factory (range 18) 25888 | -5/Archives | Discovered new exit (range 15) 25992 | -5/Archives | Discovered new exit (range 22) 26297 | -5/Archives | Build established: Scavenger-Gunner 26345 | -5/Archives | Entered Hub_04(d) 26911 | -5/Hub_04(d) | Network Hub disabled 26982 | -5/Hub_04(d) | Spotted Lightning 26995 | -5/Hub_04(d) | Destroyed Lightning 26995 | -5/Hub_04(d) | Spotted Lightning 27005 | -5/Hub_04(d) | Spotted Lightning 27005 | -5/Hub_04(d) | Destroyed Lightning 27017 | -5/Hub_04(d) | Destroyed Lightning 27047 | -5/Hub_04(d) | Found Prototype Processor 27047 | -5/Hub_04(d) | Identified Exp. Targeting Computer 27052 | -5/Hub_04(d) | Found Prototype Device 27052 | -5/Hub_04(d) | Identified Exp. Phase Shifter 27057 | -5/Hub_04(d) | Found Prototype Device 27057 | -5/Hub_04(d) | Identified Exp. EM Disruption Field 27081 | -5/Hub_04(d) | Found Exp. Targeting Computer 27191 | -5/Hub_04(d) | Found Imp. Powered Armor 27313 | -5/Hub_04(d) | Network Hub disabled 27545 | -5/Hub_04(d) | First assault squad dispatched 27716 | -5/Hub_04(d) | Network Hub disabled 27739 | -5/Hub_04(d) | Network Hub disabled 27851 | -5/Hub_04(d) | Destroyed 7 combat bots 27858 | -5/Hub_04(d) | Garrison activated, responded to threat 27927 | -5/Hub_04(d) | Destroyed 7 combat bots 28276 | -5/Hub_04(d) | Spotted Lightning 28367 | -5/Hub_04(d) | Garrison activated, responded to threat 28368 | -5/Hub_04(d) | Spotted Lightning 28372 | -5/Hub_04(d) | Spotted Lightning 28377 | -5/Hub_04(d) | Destroyed Lightning 28419 | -5/Hub_04(d) | Destroyed Lightning 28440 | -5/Hub_04(d) | Lost 3 parts (3w) 28443 | -5/Hub_04(d) | Destroyed Lightning 28460 | -5/Hub_04(d) | Found Exp. EM Disruption Field 28463 | -5/Hub_04(d) | Found Exp. Targeting Computer 28551 | -5/Hub_04(d) | Entered Factory 28551 | -4/Factory | Evolved 2 slots: Utility x2 28801 | -4/Factory | First assault squad dispatched 28924 | -4/Factory | Destroyed 7 combat bots 29209 | -4/Factory | Spotted B-86 Titan 29272 | -4/Factory | Discovered new exit (range 13) 29293 | -4/Factory | Garrison activated, responded to threat 29362 | -4/Factory | Destroyed 9 combat bots 29380 | -4/Factory | Destroyed B-86 Titan 29424 | -4/Factory | Sucked down chute 29424 | -4/Factory | Entered Waste 29450 | -4/Waste | 2 allies followed down the chute 29494 | -4/Waste | Spotted C-40 Crusher 29505 | -4/Waste | Spotted C-40 Crusher 29509 | -4/Waste | Spotted C-40 Crusher 29526 | -4/Waste | Spotted C-40 Crusher 29529 | -4/Waste | Spotted C-40 Crusher 29565 | -4/Waste | Spotted C-40 Crusher 29605 | -4/Waste | Warlord forces began an assault 29622 | -4/Waste | Allies destroyed C-40 Crusher 29624 | -4/Waste | Allies destroyed C-40 Crusher 29626 | -4/Waste | Allies destroyed C-40 Crusher 29626 | -4/Waste | Allies destroyed C-40 Crusher 29628 | -4/Waste | Allies destroyed C-40 Crusher 29630 | -4/Waste | Allies destroyed C-40 Crusher 30112 | -4/Waste | Discovered new exit (range 10) 30184 | -4/Waste | Build established: Scavenger-Golem 30199 | -4/Waste | Entered Factory 30199 | -4/Factory | Accompanied by 17 allies 30504 | -4/Factory | Identified exit to Upper Caves 30546 | -4/Factory | Fabricated Hcp. Storage Unit (x1) 30611 | -4/Factory | P-70 Sage assimilated allied 2I-Q01(s) 30665 | -4/Factory | Garrison activated, responded to threat 30678 | -4/Factory | Found Active Sensor Suite 30738 | -4/Factory | Lost 13 allies 30902 | -4/Factory | Repaired Enh. Coil Gun 31067 | -4/Factory | Lost 4 parts (1p2n1w) 31274 | -4/Factory | Discovered new exit (range 5) 31335 | -4/Factory | Spotted B-86 Titan 31339 | -4/Factory | Destroyed B-86 Titan 31406 | -4/Factory | Fabricated Centrium Leg (x1) 31430 | -4/Factory | Build established: Scavenger-Skirmisher 31594 | -4/Factory | Fabricated Centrium Leg? 31740 | -4/Factory | Lost 5 parts (2n3w) 32066 | -4/Factory | Entered Upper Caves 32152 | -4/Upper Caves | Encountered a Warlord checkpoint 32361 | -4/Upper Caves | Build established: Golem 32977 | -4/Upper Caves | Discovered new exit (range 9) 33049 | -4/Upper Caves | Learned Research emergency access door positions 33049 | -4/Upper Caves | Learned Factory stockpile data 33049 | -4/Upper Caves | Learned Extension security intel 33049 | -4/Upper Caves | Learned Armory security intel 33049 | -4/Upper Caves | Learned Research garrison access intel 33700 | -4/Upper Caves | Ambushed by wild Derelicts 33928 | -4/Upper Caves | Identified exit to Upper Caves 33929 | -4/Upper Caves | Entered another Upper Caves area 33929 | -4/Upper Caves | Discovered new exit (range 12) 33969 | -4/Upper Caves | Identified exit to Warlord 33985 | -4/Upper Caves | Core integrity fell below 50% 34317 | -4/Upper Caves | Spotted B-86 Titan 34353 | -4/Upper Caves | Build established: Scavenger-Skirmisher 34378 | -4/Upper Caves | Destroyed B-86 Titan 34501 | -4/Upper Caves | Entered Warlord 34547 | -4/Warlord | System corruption cleaned by Quarantine Array 34792 | -4/Warlord | Build established: Scavenger-Mutant 35201 | -4/Warlord | Warlord's base attacked by MAIN.C 35321 | -4/Warlord | Found Prototype Energy Gun 35321 | -4/Warlord | Identified Vortex Rail 35326 | -4/Warlord | Found Prototype Launcher 35326 | -4/Warlord | Identified Vortex Catalyst Activator 35333 | -4/Warlord | Met EX-DEC 35333 | -4/Warlord | Found Prototype Energy Cannon 35426 | -4/Warlord | Met Warlord 35438 | -4/Warlord | Opened Warlord's prototype stash 35443 | -4/Warlord | Found Prototype Reactor 35443 | -4/Warlord | Identified Vortex Chain Reactor 35450 | -4/Warlord | Found Prototype Device 35450 | -4/Warlord | Identified Thermal Barrier 35486 | -4/Warlord | Found Exp. Phase Shifter 35551 | -4/Warlord | Warlord forces counterattacked 35643 | -4/Warlord | Spotted Striker 35647 | -4/Warlord | Spotted Striker 35650 | -4/Warlord | Spotted Striker 35654 | -4/Warlord | Build established: Scavenger-Skirmisher 35688 | -4/Warlord | Lost 9 allies 35713 | -4/Warlord | Spotted Striker 35723 | -4/Warlord | Spotted Executioner 35733 | -4/Warlord | Destroyed Executioner 35764 | -4/Warlord | Lost 3 parts (3u) 35783 | -4/Warlord | Lost 15 allies 35849 | -4/Warlord | Spotted Striker 35870 | -4/Warlord | Found Corrupted Prototype Ballistic Cannon 35876 | -4/Warlord | Warlord base infiltrated, sounded retreat 35976 | -4/Warlord | Lost 3 allies 36030 | -4/Warlord | Found Prototype Ballistic Cannon 36030 | -4/Warlord | Identified Hvy. Autocannon (x2) 36033 | -4/Warlord | Spotted Executioner 36043 | -4/Warlord | Destroyed Executioner 36047 | -4/Warlord | Lost 4 allies 36055 | -4/Warlord | Found Corrupted Prototype Processor 36055 | -4/Warlord | Identified Exp. Core Analyzer 36081 | -4/Warlord | Spotted Striker 36083 | -4/Warlord | Spotted Striker 36087 | -4/Warlord | Destroyed Striker 36098 | -4/Warlord | Destroyed Striker 36119 | -4/Warlord | Destroyed 10 combat bots 36158 | -4/Warlord | Spotted Striker 36162 | -4/Warlord | Spotted Executioner 36169 | -4/Warlord | Discovered new exit (range 14) 36177 | -4/Warlord | Entered Proximity Caves 36206 | -3/Proximity Caves | Lost 3 parts (2n1u) 36268 | -3/Proximity Caves | Attracted the attention of an 0b10 checkpoint 36344 | -3/Proximity Caves | Core integrity fell below 20% 36368 | -3/Proximity Caves | Destroyed by S-43 Plague with Heavy Machine Gun Last Messages --------------- 36348_ Centrium Leg destroyed. 36351_ Searching scrap... 36351_ Found Imp. Actuator Array. 36351_ Found Unknown Hover Unit. 36351_ Found Mak. ECM Suite. 36351_ Found 34 Matter. 36352_ Acquired Unknown Hover Unit. 36352_ Identified Antigrav System. 36356_ Centrium Leg destroyed. 36357_ Searching scrap... 36357_ Found Phase Gun. 36357_ Found Hacking Suite. 36357_ Found Authchip [R/Combat]. 36357_ Found 15 Matter. 36358_ Acquired 5 matter. 36358_ Acquired Phase Gun. 36359_ Acquired 10 matter. 36363_ Antigrav System destroyed. 36366_ S-43 Plague destroyed. 36368_ Identified Lgt. Antimatter Reactor. Map ----- +----------------------------------------------------+ | ??????????????????????????????????????????? | | ??????????????????????????????????????????? | | ??????????????????????????????????????????? | | ??????????????????????????????????????????? | | ??????????????????????????????????????????? | | ??????????????????????????????????????????? | | ??????????????????????????????????????????? | | #?????????????????????????????????????????? | | #???????????###???????????????????????????? | | ?????????#### ##??????????????????????????? | | ###?????## #??????????????????????????? | | # ##??### ##?????????????????????????? | | #### ##????????????????????????? | | ###??????????????????????? | | ##?????????????????????? | | # #### !##????????????????????? | | ####### ##??# !%##???????????????????? | | ??????## ##?### #???????????????????? | | #??????# #?## #???????????????????? | | #?????# ## #???????????????????? | | #?????# ### #???????????????????? | | ?????? #?# ##??????????????????? | | ????? ### #??????????????????? | | ????# ## ##?????????????????? | | ????## # ## s ###???????????????? | | ?????# ?# %!@#???????????????? | | ?????# ?# ss#???????????????? | | ?????# ?# ##???????????????? | | ????? ? ##????????????????? | | ?????###? #?????????????????? | | ????????? #### ##?????????????????? | | ?????????? ???####??????????????????? | | ?????????? ??????????????????????????? | | ??????????? ??????????????????????????? | | ???????????## ???????????????????????????? | | ????????????? ????????????????????????????? | | ??????????????????????????????????????????? | | ??????????????????????????????????????????? | | ??????????????????????????????????????????? | | ??????????????????????????????????????????? | | ??????????????????????????????????????????? | | ??????????????????????????????????????????? | | ??????????????????????????????????????????? | | ??????????????????????????????????????????? | | ??????????????????????????????????????????? | | ??????????????????????????????????????????? | | ??????????????????????????????????????????? | | ??????????????????????????????????????????? | | ??????????????????????????????????????????? | | ??????????????????????????????????????????? | +----------------------------------------------------+ Best States ------------- Heat Dissipation 74 Energy Generation 55 Energy Capacity 2200 Matter Stores 300 Matter Capacity 300 Sight Range 22 Robot Scan Range 20 Terrain Scan Range 20 Terrain Scan Density 1010 Jamming Range 14 Cloak Strength 4 Armor Coverage 1600 Resistance: KI 30 Resistance: TH 30 Resistance: EX 15 Resistance: EM 75 Resistance: I 15 Resistance: S 15 Resistance: P 15 Weapon Shielding 100 Point Defense Rating 160 Phase Shifting 20 Evasion (%) 75 Targeting Accuracy 12 Core Analysis 8 Armor Integrity Analysis 30 Recoil Reduction 4 Salvage Targeting 2 Offensive Hacking 24 Defensive Hacking 10 Authchip Count 1 Item Schematics ----------------- Hcp. Storage Unit | -9/Materials | Hacked Transport Network Coupler | -9/Materials | Scanalyzed Seismic Detector | -9/Materials | Extracted Tractor Beam | -9/Materials | Extracted Med. Storage Unit | -9/Materials | Extracted Lrg. Matter Pod | -9/Materials | Extracted Beam Rifle | -9/Materials | Extracted Imp. Targeting Computer | -9/Materials | Extracted Imp. Utility Shielding | -8/Materials | Extracted Huge Storage Unit | -8/Materials | Extracted Axe | -8/Materials | Extracted Hpw. Shotgun | -8/Materials | Extracted Imp. Light Armor Plating | -8/Materials | Extracted Thermal Generator | -8/Materials | Extracted Cryofiber Web | -8/Materials | Extracted EM Pulse Gun | -8/Materials | Extracted Combat Drone Bay | -7/Data Miner | Free Lgt. Regenerative Plating | -7/Data Miner | Free Biomechanical Wings | -7/Data Miner | Free Gravity Neutralizer | -7/Data Miner | Free Force Rifle | -7/Data Miner | Free Field Propulsion Drive | -7/Data Miner | Free Adv. Cooling System | -7/Data Miner | Free Imp. Arc Projector | -7/Data Miner | Free Quantum Capacitor | -7/Data Miner | Free Imp. Gravmag System | -7/Data Miner | Free Imp. Particle Charger | -6/Zion | Archive Imp. Kinecellerator | -6/Zion | Archive Imp. Target Analyzer | -6/Zion | Archive Hvy. Treads | -6/Zion | Archive Force Field | -6/Zion | Archive Imp. Launcher Guidance Computer | -6/Zion | Archive Thermic Laser | -6/Zion | Archive Phase Gun | -6/Zion | Archive Centrium Wheel | -6/Zion | Archive Hvy. Phase Cannon | -6/Zion | Archive Imp. Component Analysis Suite | -6/Zion | Archive Imp. Heavy Armor Plating | -6/Zion | Archive Hvy. Mass Driver | -6/Zion | Archive Weapon Mount | -5/Extension | Hacked Centrium Leg | -4/Factory | Hacked Robot Schematics ------------------ O-24 Administrator | -7/Data Miner | Free G-47 Trooper | -7/Data Miner | Free A-15 Conveyor | -7/Data Miner | Free G-50 Soldier | -7/Data Miner | Free T-07 Excavator | -6/Zion | Archive Fabricated ------------ Hcp. Storage Unit | x1 | -4/Factory Centrium Leg | x1 | -4/Factory Centrium Leg | x1 | -4/Factory Alien Tech Used ----------------- None Achievements -------------- None Challenges ------------ None Game ------ Seed TransportArchitectCarapace Manual? 0 Play Time 05:26:30 Cumulative 468.6 hours Start 2024.01.22 @ 14:18:51 End 2024.01.24 @ 10:27:53 Sessions 5 Manual Loads 0 Difficulty Rogue Special Mode None Game No. 164 Rogue 149 Adventurer 15 Explorer 0 Win Type - Total 30 Types 8/3/8/2/2/0/4/2/1 Lore% 91 Gallery% 93 Achievement% 83 Wizard Run 0 Options --------- ASCII 0 Keyboard 0 Movement Numpad Keybinds 0 Fullscreen 1 Font 18/SmallcapsGlow Map View 76x50 Zoom Use 0% Tactical HUD 1 Map Filters NONE Filters NONE Steam 1 RUN: d987a900-14c9-4090-bbb0-c583dfa2a282